Cogmind - Beta 16 @@@ ROGUE MODE // 2026.01.18 @ 14:17:23 Player: MAC-Bot 2145 Result: Destroyed by Y-45 Defender with Heavy Assault Rifle Performance ------------- Evolutions (1) 500 Regions Visited (2) 400 Robots Destroyed (12) 60 Value Destroyed (441) 441 Prototype IDs (0) 0 Alien Tech Used (0) 0 Bonus (0) 0 TOTAL SCORE: 1401 Bonus ------- None Cogmind --------- Core Integrity 0/400 Matter 196/300 Energy 250/250 System Corruption 5% Temperature Cool (0) Movement Core (250) Ox4 Location -9/Materials Parts ------- > --- POWER (1) -------- Ion Engine > --- PROPULSION (3) --- (None) > --- UTILITY (3) ------ Small Storage Unit Targeting Computer Light Armor Plating > --- WEAPON (2) ------- (None) > --- INVENTORY (8) ---- Small Matter Pod (0) Heavy Assault Rifle Peak State ------------ > --- POWER ------------ Ion Engine > --- PROPULSION ------- Aluminum Leg Aluminum Leg Aluminum Leg > --- UTILITY ---------- Small Storage Unit Light Armor Plating > --- WEAPON ----------- Beam Rifle Heavy Assault Rifle > --- INVENTORY -------- (None) [Rating: 10] Favorites ----------- Power Light Ion Engine Engine Light Ion Engine Propulsion Aluminum Leg Leg Aluminum Leg Wheel Compact Wheel Flight Unit Flight Unit Utility Small Storage Unit Storage Small Storage Unit Processor Targeting Computer Protection Light Armor Plating Weapon Assault Rifle Energy Gun Beam Rifle Ballistic Gun Assault Rifle Build | -11 -10 -9 ------- Run | Yrd Mat Mat Slots Evolved 2 | . . 2 Power . | . . . Propulsion 1 | . . 1 Utility 1 | . . 1 Weapon . | . . . Parts Attached 19 | 6 3 10 Power 2 | 1 . 1 Engine 2 | 1 . 1 Core . | . . . Reactor . | . . . Propulsion 7 | 2 2 3 Treads . | . . . Leg 3 | . . 3 Wheel 2 | 2 . . Hover . | . . . Flight 2 | . 2 . Utility 4 | 1 1 2 Device . | . . . Storage 1 | 1 . . Processor 1 | . . 1 Hackware . | . . . Protection 2 | . 1 1 Artifact . | . . . Weapon 6 | 2 . 4 Energy Gun 3 | . . 3 Energy Cannon . | . . . Ballistic Gun 3 | 2 . 1 Ballistic Cannon . | . . . Launcher . | . . . Special Weapon . | . . . Impact Weapon . | . . . Slashing Weapon . | . . . Piercing Weapon . | . . . Special Melee Weapon . | . . . Unidentified Prototypes . | . . . Parts Lost 13 | . 2 11 Power 1 | . . 1 Propulsion 6 | . 1 5 Utility 1 | . 1 . Weapon 5 | . . 5 Highest Loss Streak 6 | . 2 6 To Critical Strikes 1 | . . 1 Average Backups 3 | 3 5 2 Power . | . 1 . Propulsion 1 | 2 3 1 Utility . | . . . Weapon 1 | . 1 1 Tool/Special . | . . . Unused Backups 2 | . 2 . Power . | . . . Propulsion 2 | . 2 . Utility . | . . . Weapon . | . . . Tool/Special . | . . . Average Slot Usage (%) 75 | . 93 66 Engine 11 | . 14 10 Leg 6 | . . 10 Wheel 10 | . 12 8 Flight 5 | . 15 . Storage 12 | . 14 11 Processor 1 | . . 1 Protection 5 | . 9 3 Energy Gun 4 | . . 6 Ballistic Gun 18 | . 28 13 Peak Build Rating 10 | 6 7 10 Average Rating 6 | 4 6 6 On Entrance 4 | . 6 6 Avg Prop Armor Cover (%) . | . . . Naked Turns . | . . . Heaviest Build 19 | 11 14 19 Greatest Support 30 | 26 26 30 Greatest Overweight (x) 6 | . 1 6 Average Overweight (x) . | . . . Largest Inventory Capacity 8 | 8 8 8 Average Capacity 7 | 6 8 8 Most Carried 8 | 6 8 5 Average Carried 3 | 3 5 2 Final Capacity 8 | 8 8 8 Final Carried 6 | 6 4 2 Class Distribution -------------------- 68% | Mutant 32% | Scavenger-Mutant Dominant Class ---------------- Mutant | -10/Materials Scavenger-Mutant | -9/Materials Resources | -11 -10 -9 ----------- Run | Yrd Mat Mat Matter Collected 374 | 216 . 158 Remotely . | . . . Salvage Created 290 | . 60 230 Parts 15 | . 1 14 Haulers Intercepted . | . . . Recyclers Shooed . | . . . Parts Field Recycled . | . . . Retrieved Matter . | . . . Parts Self-Destructed . | . . . Prevented . | . . . Parts Restored . | . . . Kills | -11 -10 -9 ------- Run | Yrd Mat Mat Combat Hostiles Destroyed 8 | . 2 6 Guns 3 | . 1 2 AOE 5 | . 1 4 Classes Destroyed 6 | . 2 4 Worker 2 | . . 2 Mechanic 1 | . . 1 Operator 1 | . 1 . Grunt 4 | . 2 2 Brawler 1 | . . 1 Sentry 3 | . . 3 Best Kill Streak 6 | . 3 6 Combat Bots Only 5 | . 2 5 Max Kills in Single Turn 5 | . 2 5 Gunslinging . | . . . Exploded 4 | . 1 4 Melee . | . . . Uniques/NPCs Destroyed . | . . . Combat | -11 -10 -9 -------- Run | Yrd Mat Mat Hostile Shots Fired 123 | . 23 100 Missed 38 | . 8 30 Hits 85 | . 15 70 Melee 4 | . . 4 Projectile 81 | . 15 66 Critical Strikes 3 | . . 3 Damage Taken 1487 | . 247 1240 Core 432 | . 20 412 Absorbed by Shields . | . . . Core Remaining (%) 96 | 100 92 . Volleys Fired 46 | . 11 35 Largest 2 | . 2 2 Hottest 115 | . 40 115 Shots Fired 80 | . 22 58 Gun 80 | . 22 58 Cannon . | . . . Launcher . | . . . Special . | . . . Kinetic 46 | . 22 24 Thermal 34 | . . 34 Explosive . | . . . Electromagnetic . | . . . Robot Hit Streak 2 | . 2 2 Robot Miss Streak 1 | . 1 1 Penetration Max . | . . . Secondary Targets . | . . . Shots Hit Robots 7 | . 3 4 Core Hits 14 | . 3 11 Critical Kills . | . . . Critical Parts Destroyed . | . . . Critical Strikes . | . . . Melee Attacks . | . . . Impact . | . . . Slashing . | . . . Piercing . | . . . Sneak Attacks . | . . . Combat Hostiles . | . . . Follow-up Attacks . | . . . Damage Inflicted 1211 | . 379 832 Guns 91 | . 31 60 Cannons . | . . . Explosions 1120 | . 348 772 Melee . | . . . Ramming . | . . . Kinetic 76 | . 31 45 Thermal 363 | . 348 15 Explosive 772 | . . 772 Electromagnetic . | . . . Impact . | . . . Slashing . | . . . Piercing . | . . . Highest Corruption 5 | . . 5 Average Corruption 5 | . . 5 Corruption Purged . | . . . Corruption Blocked . | . . . Effects 6 | . . 6 Message Errors 1 | . . 1 Matter Fused 1 | . . 1 Heat Flow Errors 1 | . . 1 Parts Rejected 1 | . . 1 Parts Fused 1 | . . 1 Weapon Failures 1 | . . 1 Overload Shots . | . . . Overflow Damage 219 | . 128 91 Projectiles . | . . . Explosions 219 | . 128 91 Melee . | . . . Knockbacks . | . . . Impact . | . . . Kinetic . | . . . Secondary . | . . . Self-Inflicted Damage 295 | . 70 225 Shots 4 | . 1 3 Rammed . | . . . Targets Rammed . | . . . Kicked . | . . . Crushed . | . . . Highest Temperature 279 | . 80 279 Average Temperature 89 | . 34 102 Received Heat Transfer 432 | . 87 345 Effects 1 | . . 1 Interference 1 | . . 1 Siege Activations . | . . . Martial Activations . | . . . Shielding Activations . | . . . Robots Disrupted . | . . . Combat Hostiles . | . . . Robots Corrupted . | . . . Combat Hostiles . | . . . Parts Fried . | . . . Impact Corruptions . | . . . Robots Melted . | . . . Combat Hostiles . | . . . Parts Melted . | . . . Heat Transferred 287 | . 250 37 Parts Sabotaged . | . . . Parts Stolen . | . . . Parts Stripped . | . . . Power Chain Reactions . | . . . Alert | -11 -10 -9 ------- Run | Yrd Mat Mat Maximum Alert Level 1 | . . 1 Low Security (%) 88 | 100 100 80 Level 1 11 | . . 19 Level 2 . | . . . Level 3 . | . . . Level 4 . | . . . Level 5 . | . . . High Security . | . . . Max Security . | . . . Peak Influence 249 | . 121 249 Initial 46 | . . 46 Average 65 | . 20 102 Influence Increases 471 | . 131 340 Destroy 0b10 Robot/C 160 | . 40 120 Destroy 0b10 Robot/NC 20 | . 5 15 Destroy Leader 50 | . 10 40 Disable Machine 135 | . 30 105 Destroy Structure 106 | . 46 60 Influence Decreases 272 | . 20 252 Entered New Map 65 | . . 65 Time Decay 120 | . 10 110 Lost Part 87 | . 10 77 Squads Dispatched 1 | . 1 . Investigation . | . . . Extermination . | . . . Reinforcement 1 | . 1 . Assault . | . . . Garrison . | . . . Intercept . | . . . Searches Triggered . | . . . Construction Impeded . | . . . Haulers Reinforced . | . . . Active Scanning Responses . | . . . Cargo Convoy Interrupts . | . . . Stealth | -11 -10 -9 --------- Run | Yrd Mat Mat Distress Signals 2 | . 1 1 Communications Jammed . | . . . Distress Signals . | . . . Times Spotted 15 | . 7 8 Peak Tracking Total 5 | . 3 5 Tactical Retreats . | . . . Traps | -11 -10 -9 ------- Run | Yrd Mat Mat Traps Triggered . | . . . Indirectly . | . . . Trap Hack Attempts . | . . . Triggered . | . . . Disarmed . | . . . Reprogrammed . | . . . Reused . | . . . Traps Extracted . | . . . Installed . | . . . Triggered . | . . . Machines | -11 -10 -9 ---------- Run | Yrd Mat Mat Machines Disabled 9 | . 2 7 Max in Single Turn 2 | . 2 2 Machines Repaired . | . . . Machines Dismantled . | . . . Machines Sabotaged . | . . . Overloaded Fab Kills . | . . . Hacking | -11 -10 -9 --------- Run | Yrd Mat Mat Machines Accessed 2 | . . 2 Terminals 1 | . . 1 Fabricators . | . . . Repair Stations . | . . . Recycling Units 1 | . . 1 Scanalyzers . | . . . Garrison Access . | . . . Total Hacks 2 | . . 2 Successful 2 | . . 2 Failed . | . . . Catastrophic . | . . . Database Lockouts . | . . . Manual . | . . . Terminals 1 | . . 1 Fabricators . | . . . Repair Stations . | . . . Recycling Units 1 | . . 1 Scanalyzers . | . . . Garrison Access . | . . . Terminal Hacks 1 | . . 1 Record 1 | . . 1 Fabricator Hacks . | . . . Repair Station Hacks . | . . . Recycling Unit Hacks 1 | . . 1 Retrieve Components 1 | . . 1 Scanalyzer . | . . . Garrison Access Hacks . | . . . Unauthorized Hacks . | . . . Terminals . | . . . Fabricators . | . . . Repair Stations . | . . . Recycling Units . | . . . Scanalyzers . | . . . Garrison Access . | . . . Data Cores Recovered . | . . . Used . | . . . Hacking Detections . | . . . Full Trace Events . | . . . Feedback Events . | . . . Feedback Blocked . | . . . Robot Schematics Acquired . | . . . Robots Built . | . . . Authchips . | . . . Time . | . . . Total Robot Build Rating . | . . . Part Schematics Acquired . | . . . Parts Built . | . . . Authchips . | . . . Time . | . . . Total Part Build Rating . | . . . Part Studies Acquired . | . . . Parts Repaired . | . . . Time . | . . . Parts Recycled . | . . . Recycled Matter . | . . . Retrieved Matter . | . . . Retrieved Components . | . . . Parts Scanalyzed . | . . . Part Schematics Acquired . | . . . Parts Damaged . | . . . Bothacking | -11 -10 -9 ------------ Run | Yrd Mat Mat Used RIF Installer . | . . . Robots Hacked . | . . . Non-combat . | . . . Combat . | . . . Robot Hacks Applied . | . . . Relay Couplers Released . | . . . Fabnet Peak Effective % . | . . . Robots Rewired . | . . . Allies Hacked . | . . . Hacks Repelled . | . . . Allies | -11 -10 -9 -------- Run | Yrd Mat Mat Total Allies . | . . . Largest Group . | . . . Highest-Rated Group . | . . . Highest-Rated Ally . | . . . Total Orders . | . . . Ally Attacks . | . . . Total Damage . | . . . Kills . | . . . Allies Corrupted . | . . . Allies Melted . | . . . Intel | -11 -10 -9 ------- Run | Yrd Mat Mat Active Infowar (turns) . | . . . Robot Analysis Total . | . . . Derelict Logs Recovered . | . . . Drone Launches . | . . . Drone Recoveries . | . . . Exploration | -11 -10 -9 ------------- Run | Yrd Mat Mat Turns Passed 456 | 59 130 267 Spaces Moved 231 | 45 52 134 Core 11 | 3 . 8 Treads . | . . . Legs 40 | . . 40 Wheels 158 | 42 30 86 Hover . | . . . Flight 22 | . 22 . Fastest Speed 50 | 50 90 90 Average Speed 105 | 87 101 113 Slowest Speed 350 | 90 117 350 Overloaded Moves . | . . . Propulsion Burnouts . | . . . Robots Hopped . | . . . Potential Cave-ins . | . . . Cave-ins Triggered . | . . . Exploration Rate (%) 12 | 3 18 17 Regions Visited 2 Branch Regions . Pre-discovered Areas . | . . . Known Exits Taken . | . . . Unknown Exits Taken 2 | 1 1 . Scrap Searched . | . . . Spaces Dug . | . . . Terrain Destroyed 116 | . 48 68 Melee . | . . . Projectile . | . . . AOE 116 | . 48 68 Terrain Rammed . | . . . Walls Destroyed . | . . . Machines Disabled . | . . . Actions | -11 -10 -9 --------- Run | Yrd Mat Mat Total 364 | 64 111 189 Wait 38 | 2 36 . Move 229 | 44 51 134 Hop . | . . . Pick Up 23 | 12 3 8 Fast Attach . | . . . Attach 21 | 6 5 10 Detach 2 | . 2 . Swap 2 | . . 2 Drop 3 | . 3 . Fire 46 | . 11 35 Melee . | . . . Ram . | . . . Kick . | . . . Crush . | . . . Escape Stasis . | . . . Rewire . | . . . Trap . | . . . Miscellaneous . | . . . Route ------- -11/Scrapyard -10/Materials -9/Materials History --------- Turn | Location | Event 18 | -11/Scrapyard | Discovered new exit (range 16) 60 | -11/Scrapyard | Entered Materials 182 | -10/Materials | Discovered new exit (range 9) 190 | -10/Materials | Entered another Materials area 190 | -9/Materials | Evolved 2 slots: Propulsion x1, Utility x1 321 | -9/Materials | Core integrity fell below 50% 336 | -9/Materials | Core integrity fell below 20% 353 | -9/Materials | Lost 6 parts (1p2n3w) 457 | -9/Materials | Destroyed by Y-45 Defender with Heavy Assault Rifle Last Messages --------------- U-05 Engineer lays Concrete. The unstable cave ceiling collapses. U-05 Engineer lays Concrete. The unstable cave ceiling collapses. U-05 Engineer builds a Wall. U-05 Engineer lays Concrete. The unstable cave ceiling collapses. U-05 Engineer builds a Wall. U-05 Engineer lays Concrete. System corrupted: Matter fused (-5). U-05 Engineer lays Concrete. The unstable cave ceiling collapses. Aluminum Leg destroyed. U-05 Engineer lays Concrete. Beam Rifle destroyed. U-05 Engineer lays Concrete. U-05 Engineer builds a Wall. U-05 Engineer lays Concrete. Hvy. Assault Rifle destroyed. U-05 Engineer lays Concrete. Map ----- +----------------------------------------------------+ | ?????????????????????????????????????????????????? | | ?????????????????????????????????????????????????? | | ?????????????????????????????????????????????????? | | ?????????????????????????????????????????????????? | | ?????????????????????????????????????????????????? | | ?????????????????????????????????????????????????? | | ?????????????????????????????????????????????????? | | ?????????????????????????????????????????????????? | | ?????????????????????? ?????????# ????????????? | | ????????????????????? ######### ????????????? | | ?????????????????????? ????????????? | | ?????????????????????? ?????????????? | | ??????????????????????? ?????????????? | | ??????????????????????## ??????????????? | | ??????????????????????? #??????????????? | | ??????????????????????## = ##??????????????? | | ??????????????????????# # * #??????????????? | | ???????????????????????# u #??????????????? | | ???????????????????????# ###??????????????? | | ?????????????????######## #??????????????? | | ?? ????????????# # ##?????????????? | | ?# ????????????# """ # #???#?????????? | | ?# ????????????# """ #### ###???????? | | ?# #???????????# """ #???????? | | ?# ????? ?????# + #???????? | | ?+ ???? " ?# #@ #???????? | | ?# ???? ######## #???????? | | ?# #?????# #???????? | | ?# #??????# ^^ #???????? | | ?# #??????# #???????? | | ?# ######## """ """ % #???????? | | ?# # # """ """ u# #???????? | | ?# # # """ """ ##;;;;;+##???????? | | ?# # ""# """ " ^ #????????? | | ?# + T"# ^#????????? | | ?# # ""# #######+##^ +????????? | | ?# # # #########+#### # #????????? | | ?# ######## #???# #??#????????? | | ## ###??????# ##### #???????????? | | #???????# / ! #???????????? | | ######### ##### #???????????? | | T #???# !! #???????????? | | ##########+###### """ !! = #???????????? | | #?????# # ! """# !| #??????????? | | #+####????# # """# ##??????????? | | #????# # ? #???????????? | | #????# ######/###? #???????????? | | " #????# #????? #???#####?????????????? | | Y #????# ! #????? #?????????????????????? | | " #????# #?????##?????????????????????? | +----------------------------------------------------+ Best States ------------- Heat Dissipation 28 Energy Generation 10 Energy Capacity 250 Matter Stores 256 Matter Capacity 300 Sight Range 16 Terrain Scan Density 10 Armor Coverage 150 Evasion (%) 52 Targeting Accuracy 5 Item Schematics ----------------- None Robot Schematics ------------------ None Fabricated ------------ Nothing Repaired ---------- Nothing Studied --------- None Alien Tech Used ----------------- None Achievements -------------- None Challenges ------------ None Game ------ Seed ElectrostormInsulatedShifter Manual? 0 Play Time 00:10:07 Cumulative 62.7 hours Start 2026.01.18 @ 14:00:59 End 2026.01.18 @ 14:17:23 Sessions 1 Manual Loads 0 Difficulty Rogue Special Mode None Game No. 57 Rogue 57 Adventurer 0 Explorer 0 Win Type - Total 0 Types 0/0/0/0/0/0/0/0/0/0 Lore% 14 Gallery% 18 Achievement% 12 Wizard Run 0 Options --------- Layout 1 ASCII 0 Keyboard 0 Movement Mouse Keybinds 0 Fullscreen 1 Font 24/Smallcaps Map View 50x35 Zoom Use 0% Tactical HUD 0 Map Filters NONE Filters NONE Steam 1 RUN: 687fcc13-c192-4400-aca9-7b81fab680f2